fUSD/lending_fUSD_20250612
["ID","MTS","AMOUNT","RATE_DAILY","PERIOD"]
[365479049,1749697857428,-500.0,0.0001933,2]
[365479050,1749697857438,-500.0,0.0001933,2]
[365479051,1749697857447,-500.0,0.0001933,2]
[365479052,1749697857458,-500.0,0.0001933,2]
[365479053,1749697857467,-500.0,0.0001933,2]
[365479054,1749697857477,-500.0,0.0001933,2]
[365479055,1749697857487,-500.0,0.0001933,2]
[365479056,1749697857497,-500.0,0.0001933,2]
[365479057,1749697857507,-500.0,0.0001933,2]
[365479058,1749697857516,-500.0,0.0001933,2]
[365479059,1749697857525,-235.070997,0.0001933,2]
[365479060,1749697857535,-500.0,0.0001933,2]
[365479061,1749697857547,-500.0,0.0001933,2]
[365479062,1749697857556,-500.0,0.0001933,2]
[365479063,1749697857565,-500.0,0.0001933,2]
[365479064,1749697857575,-500.0,0.0001933,2]
[365479065,1749697857584,-500.0,0.0001933,2]
[365479066,1749697857594,-500.0,0.0001933,2]
[365479067,1749697857603,-500.0,0.0001933,2]
[365479068,1749697857613,-500.0,0.0001933,2]
[365479069,1749697857622,-500.0,0.0001933,2]
[365479070,1749697857632,-500.0,0.0001933,2]
[365479071,1749697857641,-500.0,0.0001933,2]
[365479072,1749697857651,-500.0,0.0001933,2]
[365479073,1749697857660,-500.0,0.0001933,2]
[365479074,1749697857670,-500.0,0.0001933,2]
[365479075,1749697857679,-500.0,0.0001933,2]
[365479076,1749697857689,-500.0,0.0001933,2]
[365479077,1749697857699,-500.0,0.0001933,2]
[365479078,1749697857708,-500.0,0.0001933,2]
[365479079,1749697857718,-500.0,0.0001933,2]
[365479080,1749697857728,-500.0,0.0001933,2]
[365479081,1749697857737,-500.0,0.0001933,2]
[365479082,1749697857747,-500.0,0.0001933,2]
[365479083,1749697857756,-500.0,0.0001933,2]
[365479084,1749697857766,-500.0,0.0001933,2]
[365479085,1749697857776,-500.0,0.0001933,2]
[365479086,1749697857786,-500.0,0.0001933,2]
[365479087,1749697857796,-500.0,0.0001933,2]
[365479088,1749697857806,-500.0,0.0001933,2]
[365479089,1749697857816,-500.0,0.0001933,2]
[365479090,1749697857826,-500.0,0.0001933,2]
[365479091,1749697857835,-500.0,0.0001933,2]
[365479092,1749697857845,-500.0,0.0001933,2]
[365479093,1749697857855,-500.0,0.0001933,2]
[365479094,1749697857864,-500.0,0.0001933,2]
[365479095,1749697857874,-500.0,0.0001933,2]
[365479096,1749697857883,-500.0,0.0001933,2]
[365479097,1749697857892,-506.0,0.0001933,2]
[365479098,1749697857903,-153.836164,0.00019336,2]
[365479099,1749697857917,-153.836164,0.00019336,2]
[365479100,1749697857926,-396.980898,0.00019336,2]
[365479101,1749697857936,-396.980898,0.00019336,2]
[365479102,1749697857946,-291.275643,0.00019336,2]
[365479103,1749697857957,-291.275643,0.00019336,2]
[365479104,1749697857967,-1296.764101,0.00019336,2]
[365479105,1749697857976,-1296.764101,0.00019336,2]
[365479106,1749697857986,-526.75829,0.00019336,2]
[365479107,1749697857996,-526.75829,0.00019336,2]
[365479108,1749697858006,-151.0,0.00019336,2]
[365479109,1749697858016,-271.556337,0.00019336,2]
[365479110,1749697858026,-1450.49060925,0.00019338,5]
[365479111,1749697858036,-500.0,0.00019338,2]
[365479112,1749697858047,-1000.0,0.00019338,2]
[365479113,1749697858057,-1000.0,0.00019338,2]
[365479114,1749697858067,-1000.0,0.00019338,2]
[365479115,1749697858076,-1000.0,0.00019338,2]
[365479116,1749697858086,-1000.0,0.00019338,2]
[365479117,1749697858096,-1000.0,0.00019338,2]
[365479118,1749697858105,-1000.0,0.00019338,2]
[365479119,1749697858115,-1000.0,0.00019338,2]
[365479120,1749697858124,-1000.0,0.00019338,2]
[365479121,1749697858134,-999.60337199,0.00019338,2]
[365479122,1749697858143,-183.17,0.00019338,2]
[365479123,1749697858153,-500.0,0.00019338,2]
[365479124,1749697858162,-632.6,0.00019338,2]
[365479125,1749697858172,-2534.03,0.00019338,2]
[365479126,1749697858181,-500.0,0.00019338,2]
[365479127,1749697858190,-688.26,0.00019338,2]
[365479128,1749697858199,-688.26,0.00019338,2]
[365479129,1749697858209,-688.26,0.00019338,2]
[365479130,1749697858218,-688.26,0.00019338,2]
[365479131,1749697858228,-688.26,0.00019338,2]
[365479132,1749697858237,-688.26,0.00019338,2]
[365479133,1749697858247,-688.26,0.00019338,2]
[365479134,1749697858257,-688.26,0.00019338,2]
[365479135,1749697858266,-688.26,0.00019338,2]
[365479136,1749697858276,-688.26,0.00019338,2]
[365479137,1749697858285,-688.26,0.00019338,2]
[365479138,1749697858296,-688.26,0.00019338,2]
[365479139,1749697858305,-688.26,0.00019338,2]
[365479140,1749697858315,-688.26,0.00019338,2]
[365479141,1749697858324,-688.26,0.00019338,2]
[365479142,1749697858333,-688.26,0.00019338,2]
[365479143,1749697858343,-688.26,0.00019338,2]
[365479144,1749697858352,-688.26,0.00019338,2]
[365479145,1749697858362,-688.26,0.00019338,2]
[365479146,1749697858372,-120499.29137396,0.00019339,2]
[365479147,1749697858381,-211.817389,0.00019339,2]
[365479148,1749697858390,-970.060053,0.00019339,2]
[365479149,1749697858400,-166.219017,0.00019339,2]
[365479150,1749697858409,-151.0,0.00019339,2]
[365479151,1749697858419,-249.273083,0.00019339,2]
[365479152,1749697858428,-249.273083,0.00019339,2]
[365479153,1749697858438,-151.0,0.00019339,2]
[365479154,1749697858447,-163.864531,0.00019339,2]
[365479155,1749697858457,-163.864531,0.00019339,2]
[365479156,1749697858466,-233.707534,0.00019339,2]
[365479157,1749697858476,-1846.860051,0.00019339,2]
[365479158,1749697858485,-1846.860051,0.00019339,2]
[365479159,1749697858494,-448.081566,0.00019339,2]
[365479160,1749697858504,-448.081566,0.00019339,2]
[365479161,1749697858515,-151.0,0.00019339,2]
[365479162,1749697858525,-971.900683,0.00019339,2]
[365479163,1749697858535,-971.900683,0.00019339,2]
[365479164,1749697858545,-151.0,0.00019339,2]
[365479165,1749697858554,-151.0,0.00019339,2]
[365479166,1749697858563,-151.0,0.00019339,2]
[365479167,1749697858572,-151.0,0.00019339,2]
[365479168,1749697858582,-236.102719,0.00019339,2]
[365479169,1749697858593,-236.102719,0.00019339,2]
[365479170,1749697858602,-151.0,0.00019339,2]
[365479171,1749697858706,-151.0,0.00019339,2]
[365479172,1749697858715,-151.0,0.00019339,2]
[365479173,1749697858724,-164.174466,0.00019339,2]
[365479174,1749697858733,-215.524339,0.00019339,2]
[365479175,1749697858742,-215.524339,0.00019339,2]
[365479176,1749697858752,-153.836164,0.00019339,2]
[365479177,1749697858761,-153.836164,0.00019339,2]
[365479178,1749697858770,-549.40796,0.00019339,2]
[365479179,1749697858779,-549.40796,0.00019339,2]
[365479180,1749697858789,-396.980898,0.00019339,2]
[365479181,1749697858798,-396.980898,0.00019339,2]
[365479182,1749697858808,-167.72732,0.00019339,2]
[365479183,1749697858817,-963.608012,0.00019339,2]
[365479184,1749697858826,-963.608012,0.00019339,2]
[365479185,1749697858835,-175.299832,0.00019339,2]
[365479186,1749697858844,-151.0,0.00019339,2]
[365479187,1749697858853,-291.275643,0.00019339,2]
[365479188,1749697858862,-291.275643,0.00019339,2]
[365479189,1749697858871,-1296.764101,0.00019339,2]
[365479190,1749697858881,-1296.764101,0.00019339,2]
[365479191,1749697858890,-151.0,0.00019339,2]
[365479192,1749697858900,-255.744734,0.00019339,2]
[365479193,1749697858911,-255.744734,0.00019339,2]
[365479194,1749697858921,-239.671838,0.00019339,2]
[365479195,1749697858930,-239.671838,0.00019339,2]
[365479196,1749697858939,-151.0,0.00019339,2]
[365479197,1749697858948,-151.0,0.00019339,2]
[365479198,1749697858958,-187.118724,0.00019339,2]
[365479199,1749697858968,-151.0,0.00019339,2]
[365479200,1749697858977,-187.118724,0.00019339,2]
[365479201,1749697858986,-151.0,0.00019339,2]
[365479202,1749697858996,-151.0,0.00019339,2]
[365479203,1749697859006,-526.75829,0.00019339,2]
[365479204,1749697859015,-526.75829,0.00019339,2]
[365479205,1749697859024,-151.0,0.00019339,2]
[365479206,1749697859034,-151.0,0.00019339,2]
[365479207,1749697859043,-151.0,0.00019339,2]
[365479208,1749697859052,-151.0,0.00019339,2]
[365479209,1749697859061,-151.0,0.00019339,2]
[365479210,1749697859070,-151.0,0.00019339,2]
[365479211,1749697859079,-151.0,0.00019339,2]
[365479212,1749697859089,-151.0,0.00019339,2]
[365479213,1749697859098,-151.0,0.00019339,2]
[365479214,1749697859107,-179.957037,0.00019339,2]
[365479215,1749697859116,-151.0,0.00019339,2]
[365479216,1749697859125,-151.0,0.00019339,2]
[365479217,1749697859134,-151.0,0.00019339,2]
[365479218,1749697859143,-151.0,0.00019339,2]
[365479219,1749697859153,-388.561724,0.00019339,2]
[365479220,1749697859162,-388.561724,0.00019339,2]
[365479221,1749697859171,-293.130945,0.00019339,2]
[365479222,1749697859180,-293.130945,0.00019339,2]
[365479223,1749697859190,-1306.646645,0.00019339,2]
[365479224,1749697859199,-151.0,0.00019339,2]
[365479225,1749697859209,-1306.646645,0.00019339,2]
[365479226,1749697859218,-151.0,0.00019339,2]
[365479227,1749697859227,-337.38622,0.00019339,2]
[365479228,1749697859236,-337.38622,0.00019339,2]
[365479229,1749697859245,-246.985685,0.00019339,2]
[365479230,1749697859255,-241.747191,0.00019339,2]
[365479231,1749697859264,-246.985685,0.00019339,2]
[365479232,1749697859274,-241.747191,0.00019339,2]
[365479233,1749697859283,-151.0,0.00019339,2]
[365479234,1749697859292,-151.0,0.00019339,2]
[365479235,1749697859301,-2139.864371,0.00019339,2]
[365479236,1749697859310,-2139.864371,0.00019339,2]
[365479237,1749697859320,-308.048,0.00019339,2]
[365479238,1749697859329,-308.048,0.00019339,2]
[365479239,1749697859338,-151.0,0.00019339,2]
[365479240,1749697859346,-251.159973,0.00019339,2]
[365479241,1749697859357,-251.159973,0.00019339,2]
[365479242,1749697859366,-407.650493,0.00019339,2]
[365479243,1749697859375,-407.650493,0.00019339,2]
[365479244,1749697859385,-151.0,0.00019339,2]
[365479245,1749697859394,-274.59035,0.00019339,2]
[365479246,1749697859402,-274.59035,0.00019339,2]
[365479247,1749697859412,-151.0,0.00019339,2]
[365479248,1749697859421,-161.481168,0.00019339,2]
[365479249,1749697859430,-452.76122,0.00019339,2]
[365479250,1749697859439,-452.76122,0.00019339,2]
[365479251,1749697859448,-151.0,0.00019339,2]
[365479252,1749697859457,-151.0,0.00019339,2]
[365479253,1749697859466,-166.327603,0.00019339,2]
[365479254,1749697859476,-166.327603,0.00019339,2]
[365479255,1749697859485,-291.312942,0.00019339,2]
[365479256,1749697859494,-151.0,0.00019339,2]
[365479257,1749697859503,-291.312942,0.00019339,2]
[365479258,1749697859513,-151.0,0.00019339,2]
[365479259,1749697859522,-151.0,0.00019339,2]
[365479260,1749697859532,-348.014195,0.00019339,2]
[365479261,1749697859542,-348.014195,0.00019339,2]
[365479262,1749697859551,-192.337806,0.00019339,2]
[365479263,1749697859560,-192.337806,0.00019339,2]
[365479264,1749697859569,-529.471891,0.00019339,2]
[365479265,1749697859578,-151.0,0.00019339,2]
[365479266,1749697859587,-529.471891,0.00019339,2]
[365479267,1749697859596,-414.987412,0.00019339,2]
[365479268,1749697859606,-414.987412,0.00019339,2]
[365479269,1749697859614,-151.0,0.00019339,2]
[365479270,1749697859623,-151.0,0.00019339,2]
[365479271,1749697859633,-151.0,0.00019339,2]
[365479272,1749697859641,-151.0,0.00019339,2]
[365479273,1749697859650,-1339.323965,0.00019339,2]
[365479274,1749697859659,-269.104947,0.00019339,2]
[365479275,1749697859668,-1339.323965,0.00019339,2]
[365479276,1749697859678,-269.104947,0.00019339,2]
[365479277,1749697859687,-238.413377,0.00019339,2]
[365479278,1749697859697,-152.727629,0.00019339,2]
[365479279,1749697859706,-805.96608,0.00019339,2]
[365479280,1749697859715,-805.96608,0.00019339,2]
[365479281,1749697859724,-2422.530963,0.00019339,2]
[365479282,1749697859733,-2422.530963,0.00019339,2]
[365479283,1749697859742,-151.0,0.00019339,2]
[365479284,1749697859751,-151.0,0.00019339,2]
[365479285,1749697859761,-464.075523,0.00019339,2]
[365479286,1749697859769,-249.846338,0.00019339,2]
[365479287,1749697859778,-464.075523,0.00019339,2]
[365479288,1749697859788,-255.398782,0.00019339,2]
[365479289,1749697859798,-151.0,0.00019339,2]
[365479290,1749697859807,-151.0,0.00019339,2]
[365479291,1749697859816,-255.398782,0.00019339,2]
[365479292,1749697859826,-151.0,0.00019339,2]
[365479293,1749697859835,-265.622518,0.00019339,2]
[365479294,1749697859844,-265.622518,0.00019339,2]
[365479295,1749697859854,-151.0,0.00019339,2]
[365479296,1749697859864,-287.56508,0.00019339,2]
[365479297,1749697859873,-287.56508,0.00019339,2]
[365479298,1749697859883,-151.0,0.00019339,2]
[365479299,1749697859893,-151.0,0.00019339,2]
[365479300,1749697859903,-151.0,0.00019339,2]
[365479301,1749697859916,-9473.908763,0.00019339,2]
[365479302,1749697859926,-9473.908763,0.00019339,2]
[365479303,1749697859936,-238.086022,0.00019339,2]
[365479304,1749697859947,-238.086022,0.00019339,2]
[365479305,1749697859957,-151.0,0.00019339,2]
[365479306,1749697859966,-528.467945,0.00019339,2]
[365479307,1749697859976,-2071.328488,0.00019339,2]
[365479308,1749697859987,-528.467945,0.00019339,2]
[365479309,1749697859996,-154.894479,0.00019339,2]
[365479310,1749697860007,-2071.328488,0.00019339,2]
[365479311,1749697860018,-154.894479,0.00019339,2]
[365479312,1749697860027,-201.089157,0.00019339,2]
[365479313,1749697860038,-334.56429,0.00019339,2]
[365479314,1749697860050,-201.089157,0.00019339,2]
[365479315,1749697860061,-334.56429,0.00019339,2]
[365479316,1749697860071,-151.0,0.00019339,2]
[365479317,1749697860081,-151.0,0.00019339,2]
[365479318,1749697860091,-151.0,0.00019339,2]
[365479319,1749697860102,-691.238576,0.00019339,2]
[365479320,1749697860111,-246.128386,0.00019339,2]
[365479321,1749697860121,-691.238576,0.00019339,2]
[365479322,1749697860131,-151.0,0.00019339,2]
[365479323,1749697860142,-246.128386,0.00019339,2]
[365479324,1749697860152,-151.0,0.00019339,2]
[365479325,1749697860164,-151.0,0.00019339,2]
[365479326,1749697860173,-151.0,0.00019339,2]
[365479327,1749697860183,-224.533206,0.00019339,2]
[365479328,1749697860193,-224.533206,0.00019339,2]
[365479329,1749697860202,-474.214961,0.00019339,2]
[365479330,1749697860212,-474.214961,0.00019339,2]
[365479331,1749697860221,-151.0,0.00019339,2]
[365479332,1749697860231,-875.962955,0.00019339,2]
[365479333,1749697860241,-179.650264,0.00019339,2]
[365479334,1749697860250,-151.0,0.00019339,2]
[365479335,1749697860259,-875.962955,0.00019339,2]
[365479336,1749697860269,-179.650264,0.00019339,2]
[365479337,1749697860279,-151.0,0.00019339,2]
[365479338,1749697860289,-152.535489,0.00019339,2]
[365479339,1749697860299,-151.0,0.00019339,2]
[365479340,1749697860308,-151.0,0.00019339,2]
[365479341,1749697860318,-328.848464,0.00019339,2]
[365479342,1749697860328,-328.848464,0.00019339,2]
[365479343,1749697860338,-180.729921,0.00019339,2]
[365479344,1749697860349,-180.729921,0.00019339,2]
[365479345,1749697860359,-151.0,0.00019339,2]
[365479346,1749697860369,-151.0,0.00019339,2]
[365479347,1749697860380,-151.0,0.00019339,2]
[365479348,1749697860391,-151.0,0.00019339,2]
[365479349,1749697860401,-151.0,0.00019339,2]
[365479350,1749697860412,-293.244884,0.00019339,2]
[365479351,1749697860423,-205.242892,0.00019339,2]
[365479352,1749697860434,-391.06150404,0.0001934,2]
[365479353,1749697860445,-186.30545,0.0001934,2]
[365479354,1749697860455,-186.30545,0.0001934,2]
[365479355,1749697860464,-666.0,0.0001934,2]
[365479356,1749697860474,-666.0,0.0001934,2]
[365479357,1749697860484,-300.0,0.0001934,2]
[365479358,1749697860493,-300.0,0.0001934,2]
[365479359,1749697860503,-300.0,0.0001934,2]
[365479360,1749697860513,-300.0,0.00019341,2]
[365479361,1749697860523,-300.0,0.00019341,2]
[365479362,1749697860533,-151.0,0.00019341,2]
[365479363,1749697860544,-163.864531,0.00019341,2]
[365479364,1749697860553,-163.864531,0.00019341,2]
[365479365,1749697860563,-448.081566,0.00019341,2]
[365479366,1749697860572,-448.081566,0.00019341,2]
[365479367,1749697860582,-155.974199,0.00019341,2]
[365479368,1749697860591,-151.0,0.00019341,2]
[365479369,1749697860601,-253.238544,0.00019341,2]
[365479370,1749697860610,-236.102719,0.00019341,2]
[365479371,1749697860620,-236.102719,0.00019341,2]
[365479372,1749697860630,-236.102719,0.00019341,2]
[365479373,1749697860639,-236.102719,0.00019341,2]
[365479374,1749697860649,-151.0,0.00019341,2]
[365479375,1749697860659,-151.0,0.00019341,2]
[365479376,1749697860668,-151.0,0.00019341,2]
[365479377,1749697860678,-215.524339,0.00019341,2]
[365479378,1749697860688,-215.524339,0.00019341,2]
[365479379,1749697860699,-153.836164,0.00019341,2]
[365479380,1749697860709,-153.836171,0.00019341,2]
[365479381,1749697860719,-549.40796,0.00019341,2]
[365479382,1749697860729,-549.40796,0.00019341,2]
[365479383,1749697860740,-396.980898,0.00019341,2]
[365479384,1749697860750,-396.980906,0.00019341,2]
[365479385,1749697860766,-963.608012,0.00019341,2]
[365479386,1749697860776,-963.608011,0.00019341,2]
[365479387,1749697860787,-175.299832,0.00019341,2]
[365479388,1749697860800,-175.299833,0.00019341,2]
[365479389,1749697860810,-151.0,0.00019341,2]
[365479390,1749697860820,-291.275643,0.00019341,2]
[365479391,1749697860830,-291.27564,0.00019341,2]
[365479392,1749697860841,-1296.764101,0.00019341,2]
[365479393,1749697860850,-1296.7641,0.00019341,2]
[365479394,1749697860861,-255.744734,0.00019341,2]
[365479395,1749697860871,-255.744741,0.00019341,2]
[365479396,1749697860881,-239.671838,0.00019341,2]
[365479397,1749697860892,-239.671838,0.00019341,2]
[365479398,1749697860901,-151.0,0.00019341,2]
[365479399,1749697860915,-151.0,0.00019341,2]
[365479400,1749697860925,-251.159973,0.00019341,2]
[365479401,1749697860935,-251.159973,0.00019341,2]
[365479402,1749697860947,-151.0,0.00019341,2]
[365479403,1749697860957,-274.59035,0.00019341,2]
[365479404,1749697860967,-274.59035,0.00019341,2]
[365479405,1749697860977,-151.0,0.00019341,2]
[365479406,1749697860988,-452.76122,0.00019341,2]
[365479407,1749697860998,-452.76122,0.00019341,2]
[365479408,1749697861007,-151.0,0.00019341,2]
[365479409,1749697861018,-151.0,0.00019341,2]
[365479410,1749697861032,-166.327603,0.00019341,2]
[365479411,1749697861043,-166.327603,0.00019341,2]
[365479412,1749697861054,-151.0,0.00019341,2]
[365479413,1749697861065,-151.0,0.00019341,2]
[365479414,1749697861075,-348.014195,0.00019341,2]
[365479415,1749697861086,-348.014195,0.00019341,2]
[365479416,1749697861097,-414.987412,0.00019341,2]
[365479417,1749697861107,-414.987412,0.00019341,2]
[365479418,1749697861117,-151.0,0.00019341,2]
[365479419,1749697861127,-193.042505,0.00019341,2]
[365479420,1749697861137,-151.0,0.00019341,2]
[365479421,1749697861148,-151.0,0.00019341,2]
[365479422,1749697861158,-1339.323965,0.00019341,2]
[365479423,1749697861168,-1339.323965,0.00019341,2]
[365479424,1749697861178,-805.96608,0.00019341,2]
[365479425,1749697861188,-805.96608,0.00019341,2]
[365479426,1749697861203,-2422.530963,0.00019341,2]
[365479427,1749697861214,-2422.530963,0.00019341,2]
[365479428,1749697861224,-151.0,0.00019341,2]
[365479429,1749697861234,-151.0,0.00019341,2]
[365479430,1749697861244,-464.075523,0.00019341,2]
[365479431,1749697861254,-464.075523,0.00019341,2]
[365479432,1749697861264,-255.398782,0.00019341,2]
[365479433,1749697861275,-151.0,0.00019341,2]
[365479434,1749697861285,-151.0,0.00019341,2]
[365479435,1749697861296,-255.398782,0.00019341,2]
[365479436,1749697861305,-151.0,0.00019341,2]
[365479437,1749697861316,-265.622518,0.00019341,2]
[365479438,1749697861325,-265.622518,0.00019341,2]
[365479439,1749697861336,-287.56508,0.00019341,2]
[365479440,1749697861346,-287.56508,0.00019341,2]
[365479441,1749697861356,-238.086022,0.00019341,2]
[365479442,1749697861366,-238.086022,0.00019341,2]
[365479443,1749697861376,-2071.328488,0.00019341,2]
[365479444,1749697861386,-2071.328488,0.00019341,2]
[365479445,1749697861397,-334.56429,0.00019341,2]
[365479446,1749697861407,-334.56429,0.00019341,2]
[365479447,1749697861418,-151.0,0.00019341,2]
[365479448,1749697861428,-151.0,0.00019341,2]
[365479449,1749697861438,-691.238576,0.00019341,2]
[365479450,1749697861448,-691.238576,0.00019341,2]
[365479451,1749697861458,-151.0,0.00019341,2]
[365479452,1749697861468,-151.0,0.00019341,2]
[365479453,1749697861478,-875.962955,0.00019341,2]
[365479454,1749697861488,-151.0,0.00019341,2]
[365479455,1749697861499,-875.962955,0.00019341,2]
[365479456,1749697861510,-632.6,0.00019341,2]
[365479457,1749697861520,-632.6,0.00019341,2]
[365479458,1749697861530,-151.0,0.00019341,2]
[365479459,1749697861541,-632.6,0.00019341,2]
[365479460,1749697861554,-151.0,0.00019341,2]
[365479461,1749697861565,-151.0,0.00019341,2]
[365479462,1749697861575,-151.0,0.00019341,2]
[365479463,1749697861586,-164.15325,0.00019341,2]
[365479464,1749697861596,-2534.03,0.00019341,2]
[365479465,1749697861607,-2534.03,0.00019341,2]
[365479466,1749697861618,-2534.03,0.00019341,2]
[365479467,1749697861639,-500.0,0.00019341,2]
[365479468,1749697861654,-500.0,0.00019341,2]
[365479469,1749697861666,-272.18272426,0.00019341,2]
[365479470,1749697861677,-151.0,0.00019341,2]
[365479471,1749697861689,-671.9575314,0.00019341,2]
[365479472,1749697861700,-666.0,0.00019341,2]
[365479473,1749697861711,-666.0,0.00019341,2]
[365479474,1749697861723,-300.0,0.00019341,2]
[365479475,1749697861734,-300.0,0.00019341,2]
[365479476,1749697861746,-300.0,0.00019341,2]
[365479477,1749697861757,-833.29909032,0.00019341,3]
[365479478,1749697861768,-1217.11725219,0.00019341,2]
[365479479,1749697861779,-14023.94710638,0.00019341,3]
[365479480,1749697861789,-833.29909032,0.00019342,3]
[365479481,1749697861803,-46281.21138738,0.00019342,3]
[365479482,1749697862573,-968.26208382,0.00019342,3]
[365479483,1749697862585,-629.23687052,0.00019342,3]
[365479484,1749697862597,-365.745,0.00019342,3]
[365479485,1749697862646,-298.19581016,0.00019288,2]
[365479486,1749697863014,-172.830478,0.00019178,2]
[365479487,1749697863025,-326.67382472,0.00019178,2]
[365479488,1749697863035,-172.830478,0.00019178,2]
[365479489,1749697863046,-490.0,0.00019178,2]
[365479490,1749697863057,-1211.951933,0.00019178,2]
[365479491,1749697863073,-176.63613072,0.00019288,2]
[365479492,1749697863919,255.47001699,0.00017999,2]
[365479493,1749697864297,-151.0,0.00019178,2]
[365479494,1749697864307,-1014.10892886,0.00019178,2]
[365479495,1749697864322,-197.84300414,0.00019178,2]
[365479496,1749697864332,-151.0,0.00019178,2]
[365479497,1749697864342,-205.242892,0.00019178,2]
[365479498,1749697864353,-205.242892,0.00019178,2]
[365479499,1749697864363,-490.0,0.00019178,2]
[365479500,1749697864374,-490.0,0.00019178,2]
[365479501,1749697864387,-172.830478,0.00019178,2]
[365479502,1749697864398,-172.830478,0.00019178,2]
[365479503,1749697864409,-25.16805912,0.00019288,2]
[365479504,1749697864421,-500.0,0.00019288,2]
[365479505,1749697864430,-500.0,0.00019288,2]
[365479506,1749697864440,-500.0,0.00019288,2]
[365479507,1749697864451,-500.0,0.00019288,2]
[365479508,1749697864461,-58.55308414,0.00019288,2]
[365479509,1749697864477,-366.028501,0.00019288,2]
[365479510,1749697864498,-501.33692078,0.00019178,2]
[365479511,1749697864508,-75.41841486,0.00019288,2]
[365479512,1749697864521,-500.0,0.00019288,2]
[365479513,1749697864531,-500.0,0.00019288,2]
[365479514,1749697864541,-500.0,0.00019288,2]
[365479515,1749697864552,-500.0,0.00019288,2]
[365479516,1749697864564,-500.0,0.00019288,2]
[365479517,1749697864574,-500.0,0.00019288,2]
[365479518,1749697864585,-500.0,0.00019288,2]
[365479519,1749697864595,-500.0,0.00019288,2]
[365479520,1749697864606,-500.0,0.00019288,2]
[365479521,1749697864616,-151.0,0.00019296,2]
[365479522,1749697864626,-205.242892,0.000193,2]
[365479523,1749697864640,-1211.951933,0.00019315,2]
[365479524,1749697864651,-688.26,0.00019338,2]
[365479525,1749697864662,-688.26,0.00019338,2]
[365479526,1749697864674,-688.26,0.00019338,2]
[365479527,1749697864684,-688.26,0.00019338,2]
[365479528,1749697864695,-688.42574805,0.00019338,2]
[365479529,1749697864705,-172.830478,0.00019339,2]
[365479530,1749697864716,-1211.951933,0.00019339,2]
[365479531,1749697864726,-151.0,0.00019339,2]
[365479532,1749697864736,-205.242892,0.00019339,2]
[365479533,1749697864746,-172.830478,0.00019339,2]
[365479534,1749697864756,-205.242892,0.00019341,2]
[365479535,1749697864766,-1211.951933,0.00019341,2]
[365479536,1749697864775,-151.0,0.00019341,2]
[365479537,1749697864786,-205.242892,0.00019341,2]
[365479538,1749697864796,-98621.5064756,0.00019342,3]
[365479539,1749697864819,-11913.95574473,0.00019342,3]
[365479540,1749697866215,300.0,0.00017998,2]
[365479541,1749697869869,500.0,0.00017999,2]
[365479542,1749697869898,506.11733586,0.00017999,2]
[365479543,1749697869931,500.0,0.00017999,2]
[365479544,1749697869961,500.0,0.00017999,2]
[365479545,1749697870001,500.0,0.00017999,2]
[365479546,1749697870029,500.0,0.00017999,2]
[365479547,1749697870058,307.67584762,0.00017999,2]
[365479548,1749697870091,222.06910025,0.00017999,2]